bitfinex/quotes_BTCUSD_20250324
["timestamp","ask_amount","ask_price","bid_price","bid_amount"]
[1742838596210,0.0021232,88459.0,88458.0,0.73695764]
[1742838596558,0.0021232,88459.0,88458.0,0.76195764]
[1742838597213,0.0021232,88459.0,88458.0,0.76595764]
[1742838597960,0.0021232,88459.0,88458.0,0.77195764]
[1742838598117,0.0021232,88459.0,88458.0,0.76795764]
[1742838598336,0.0021232,88459.0,88458.0,0.77295764]
[1742838599149,0.0021232,88459.0,88458.0,0.36265764]
[1742838599311,0.0021232,88459.0,88458.0,0.48965764]
[1742838602387,0.0024628,88459.0,88458.0,0.48965764]
[1742838604279,0.0024628,88459.0,88458.0,0.85975218]
[1742838605047,0.0024628,88459.0,88458.0,0.93955218]
[1742838606112,0.0003398,88463.0,88458.0,0.93955218]
[1742838606113,6e-07,88463.0,88462.0,0.242389]
[1742838606321,6e-07,88463.0,88462.0,0.35664664]
[1742838606528,6e-07,88463.0,88462.0,0.40324664]
[1742838606844,0.00034,88471.0,88470.0,0.237368]
[1742838607049,0.00034,88471.0,88470.0,0.96071958]
[1742838608162,0.00034,88471.0,88470.0,0.97171958]
[1742838608571,0.00034,88471.0,88470.0,0.97671958]
[1742838609577,0.00034,88471.0,88470.0,0.97171958]
[1742838609776,0.00034,88471.0,88470.0,0.97671958]
[1742838610410,0.00034,88471.0,88470.0,0.97071958]
[1742838610567,0.00034,88471.0,88470.0,0.97671958]
[1742838611013,0.00034,88471.0,88470.0,0.99961743]
[1742838611219,0.00034,88471.0,88470.0,1.12161743]
[1742838615394,0.00034,88471.0,88470.0,1.12661743]
[1742838615808,0.00034,88471.0,88470.0,1.66425743]
[1742838616010,0.0003396,88483.0,88481.0,0.237338]
[1742838616236,0.0003396,88483.0,88481.0,0.35159564]
[1742838617259,0.0003396,88483.0,88481.0,0.35659564]
[1742838617458,0.0003396,88483.0,88481.0,0.35959564]
[1742838618336,0.0003396,88483.0,88481.0,0.36807495]
[1742838618949,0.0003396,88483.0,88481.0,0.37937502]
[1742838621723,0.0003396,88483.0,88481.0,0.74878896]
[1742838625573,0.0003396,88483.0,88481.0,1.28638896]
[1742838627215,0.225992,88499.0,88496.0,0.225997]
[1742838627439,0.225992,88499.0,88497.0,0.24121764]
[1742838627677,0.22611518,88499.0,88497.0,0.24121764]
[1742838628131,0.225993,88498.0,88497.0,0.24121764]
[1742838630006,0.225993,88498.0,88497.0,0.24221764]
[1742838630238,0.22611518,88499.0,88497.0,0.24221764]
[1742838630503,0.00012318,88499.0,88497.0,0.24221764]
[1742838630739,0.00012318,88499.0,88497.0,0.46821164]
[1742838630975,0.00012318,88499.0,88497.0,0.46821264]
[1742838631317,0.22611418,88499.0,88497.0,0.46821264]
[1742838631822,0.22611418,88499.0,88497.0,0.46721264]
[1742838632347,0.22611418,88499.0,88497.0,0.46821264]
[1742838632611,0.237292,88498.0,88497.0,0.001]
[1742838633648,0.237306,88493.0,88492.0,0.36941394]
[1742838633866,0.237306,88493.0,88492.0,0.61135158]
[1742838634517,0.226006,88493.0,88492.0,0.61135158]
[1742838635263,0.226001,88495.0,88492.0,0.61135158]
[1742838635494,0.226006,88493.0,88492.0,0.49909394]
[1742838636099,0.226006,88493.0,88492.0,0.49709394]
[1742838636367,0.320006,88493.0,88492.0,0.49709394]
[1742838636581,0.320006,88493.0,88492.0,0.12768]
[1742838637002,0.320006,88493.0,88492.0,0.12968]
[1742838638924,0.320006,88493.0,88492.0,0.12768]
[1742838639242,0.320006,88493.0,88492.0,0.1300194]
[1742838639446,0.0827,88493.0,88492.0,0.1300194]
[1742838639660,0.308706,88493.0,88492.0,0.1300194]
[1742838640500,0.320006,88493.0,88492.0,0.1300194]
[1742838640677,0.76456643,88493.0,88492.0,0.0023394]
[1742838641453,0.669106,88493.0,88492.0,0.0003394]
[1742838654637,0.620006,88493.0,88492.0,0.0003394]
[1742838654898,0.226004,88494.0,88492.0,0.0003394]
[1742838655039,0.00012318,88499.0,88493.0,0.11425764]
[1742838655269,0.22611818,88499.0,88494.0,0.353084]
[1742838655487,0.00012318,88499.0,88495.0,0.34025864]
[1742838655717,0.00012318,88499.0,88498.0,0.225993]
[1742838655915,0.225998,88497.0,88495.0,0.11425764]
[1742838656123,0.225998,88496.0,88495.0,0.11425764]
[1742838657468,0.22611918,88499.0,88495.0,0.11425764]
[1742838657695,0.225996,88497.0,88495.0,0.34025364]
[1742838657846,0.225998,88496.0,88495.0,0.11425764]
[1742838658250,0.225996,88497.0,88495.0,0.11425764]
[1742838659010,0.225998,88496.0,88495.0,0.11425764]
[1742838659222,0.225996,88497.0,88495.0,0.11425764]
[1742838659769,0.225994,88498.0,88495.0,0.34025864]
[1742838660393,0.225996,88497.0,88495.0,0.11425764]
[1742838660594,0.225998,88496.0,88495.0,0.11425764]
[1742838661821,0.237297,88496.0,88495.0,0.11425764]
[1742838662218,0.237297,88496.0,88495.0,0.11525764]
[1742838662863,0.225998,88496.0,88495.0,0.11525764]
[1742838663299,0.237297,88496.0,88495.0,0.11525764]
[1742838672213,0.01142218,88499.0,88495.0,0.11525764]
[1742838672214,0.00012318,88499.0,88498.0,0.225993]
[1742838672418,0.00012318,88499.0,88498.0,0.35380918]
[1742838672619,0.00012318,88499.0,88498.0,0.35154964]
[1742838673430,0.00012318,88499.0,88498.0,0.35254964]
[1742838673836,0.00012318,88499.0,88498.0,0.35354964]
[1742838674784,0.00012318,88499.0,88498.0,0.35254964]
[1742838675000,0.00012318,88499.0,88498.0,0.35154964]
[1742838675203,0.00012318,88499.0,88498.0,0.35454964]
[1742838675604,0.00012318,88499.0,88498.0,0.35354964]
[1742838675807,0.00012318,88499.0,88498.0,0.34225064]
[1742838676011,0.00012318,88499.0,88498.0,0.11625764]
[1742838676218,0.00012318,88499.0,88498.0,0.24837764]
[1742838676624,0.00012318,88499.0,88498.0,0.47437064]
[1742838676943,0.00012318,88499.0,88498.0,0.34725064]
[1742838677193,0.00012318,88499.0,88498.0,0.47441064]
[1742838677564,0.00012318,88499.0,88498.0,0.84382458]
[1742838680888,0.00012318,88499.0,88498.0,0.85512358]
[1742838681160,0.00012318,88499.0,88498.0,0.93652358]
[1742838682118,0.00012318,88499.0,88498.0,0.85512358]
[1742838682325,0.00012318,88499.0,88498.0,0.84382458]
[1742838682518,0.00012318,88499.0,88498.0,0.85512358]
[1742838683758,0.00012318,88499.0,88498.0,0.72796358]
[1742838683975,0.00012318,88499.0,88498.0,0.85512358]
[1742838688530,0.00012318,88499.0,88498.0,0.85546298]
[1742838690495,0.00012318,88499.0,88498.0,0.85526298]
[1742838709867,0.00012318,88499.0,88498.0,0.98026298]
[1742838710114,0.00012318,88499.0,88498.0,1.01535738]
[1742838710771,0.00012318,88499.0,88498.0,0.98026298]
[1742838710998,0.00012318,88499.0,88498.0,1.01534332]
[1742838711196,0.00012318,88499.0,88498.0,0.64392938]
[1742838711609,0.00012318,88499.0,88498.0,0.64792938]
[1742838711827,0.00012318,88499.0,88498.0,0.64392938]
[1742838712013,0.00012318,88499.0,88498.0,0.63892938]
[1742838712227,0.00012318,88499.0,88498.0,0.64292938]
[1742838712425,0.00012318,88499.0,88498.0,0.64892938]
[1742838712799,0.00012318,88499.0,88498.0,0.64292938]
[1742838713192,0.00012318,88499.0,88498.0,0.64892938]
[1742838714247,0.00012318,88499.0,88498.0,0.74525499]
[1742838714678,0.00012318,88499.0,88498.0,0.75025499]
[1742838715097,0.00012318,88499.0,88498.0,0.74425499]
[1742838715474,0.00012318,88499.0,88498.0,1.05025499]
[1742838715678,8.8e-07,88501.0,88500.0,0.542287]
[1742838716029,8.8e-07,88501.0,88500.0,0.81500687]
[1742838716980,8.8e-07,88501.0,88500.0,0.82100687]
[1742838718375,8.8e-07,88501.0,88500.0,0.82700687]
[1742838723914,8.8e-07,88501.0,88500.0,0.79194464]
[1742838724743,8.8e-07,88501.0,88500.0,0.82697691]
[1742838724912,8.8e-07,88501.0,88500.0,0.82197526]
[1742838728508,8.8e-07,88501.0,88500.0,0.82697526]
[1742838728706,0.0003396,88509.0,88500.0,0.82697526]
[1742838728707,4.8e-07,88509.0,88508.0,0.237266]
[1742838728916,4.8e-07,88509.0,88508.0,1.02442364]
[1742838729119,4.8e-07,88509.0,88508.0,1.03896449]
[1742838729338,4.8e-07,88509.0,88508.0,1.07398233]
[1742838729571,3.9e-07,88520.0,88519.0,0.38337785]
[1742838729813,3.9e-07,88520.0,88519.0,0.92455549]
[1742838730272,7.9e-07,88530.0,88529.0,0.542209]
[1742838730511,9.2e-07,88553.0,88552.0,0.237147]
[1742838730743,0.00041161,88553.0,88552.0,0.71732464]
[1742838731244,0.00041161,88553.0,88552.0,0.74018032]
[1742838731468,0.00041161,88553.0,88552.0,0.37611332]
[1742838731690,0.00041161,88553.0,88552.0,0.50303332]
[1742838731923,0.00041161,88553.0,88552.0,0.50803332]
[1742838732404,0.01170361,88553.0,88552.0,0.48517764]
[1742838732831,0.01170361,88553.0,88552.0,0.35825764]
[1742838733457,0.01170361,88553.0,88552.0,0.36425764]
[1742838734108,0.01170361,88553.0,88552.0,0.25]
[1742838734235,0.01170361,88553.0,88552.0,0.245]
[1742838734638,0.01170361,88553.0,88552.0,0.247]
[1742838734904,0.01170361,88553.0,88552.0,0.008]
[1742838734905,0.09240361,88553.0,88552.0,0.008]
[1742838735283,0.09240361,88553.0,88552.0,0.002]
[1742838735513,0.09257331,88553.0,88552.0,0.007]
[1742838735891,0.09257331,88553.0,88552.0,0.005]
[1742838736086,0.09257331,88553.0,88539.0,0.2374]
[1742838736087,0.011294,88540.0,88539.0,0.2374]
[1742838736307,0.23718,88540.0,88539.0,0.35165764]
[1742838737859,0.23718,88540.0,88539.0,0.35265764]
[1742838738477,0.23718,88540.0,88539.0,0.35565764]
[1742838739683,0.011294,88540.0,88539.0,0.35565764]
[1742838740834,0.225884,88541.0,88539.0,0.35565764]
[1742838741031,0.237165,88546.0,88540.0,0.225884]
[1742838741463,0.225876,88545.0,88540.0,0.225886]
[1742838741675,0.225881,88542.0,88539.0,0.35565764]
[1742838741875,0.225881,88542.0,88539.0,0.35265764]
[1742838742158,0.225876,88545.0,88540.0,0.11425764]
[1742838742366,0.225877,88544.0,88540.0,0.11425764]
[1742838742564,0.237169,88545.0,88540.0,0.11425764]
[1742838743336,0.225879,88543.0,88540.0,0.11425764]
[1742838744292,0.225881,88542.0,88540.0,0.11425764]
[1742838744513,0.237175,88542.0,88540.0,0.11425764]
[1742838744933,0.225879,88543.0,88540.0,0.11425764]
[1742838745105,0.225881,88542.0,88540.0,0.11425764]
[1742838745326,0.011293,88545.0,88540.0,0.11425764]
[1742838745327,0.225876,88545.0,88540.0,0.11425764]
[1742838745515,0.225879,88543.0,88540.0,0.11425764]
[1742838745713,0.225882,88542.0,88540.0,0.11725764]
[1742838746020,0.225882,88542.0,88540.0,0.11525764]
[1742838746373,0.011293,88548.0,88540.0,0.11825764]
[1742838746605,0.225864,88549.0,88540.0,0.11825764]
[1742838746815,0.225869,88547.0,88542.0,0.225879]
[1742838747022,0.225872,88546.0,88543.0,0.11425764]
[1742838747230,0.011293,88549.0,88544.0,0.225876]
[1742838747416,0.011293,88550.0,88545.0,0.34013064]
[1742838747632,0.225871,88546.0,88545.0,0.11425764]
[1742838748014,0.237161,88548.0,88545.0,0.11425764]
[1742838748222,0.237154,88550.0,88545.0,0.11425764]
[1742838748223,0.225857,88552.0,88545.0,0.11425764]
[1742838748398,0.225862,88550.0,88546.0,0.225869]
[1742838748605,0.225862,88550.0,88547.0,0.11425764]
[1742838749046,0.225858,88551.0,88547.0,0.34012464]
[1742838749259,0.011292,88551.0,88547.0,0.11425764]
[1742838749666,0.225863,88550.0,88547.0,0.11425764]
[1742838750144,0.225865,88549.0,88547.0,0.11425764]
[1742838750535,0.23715,88551.0,88547.0,0.11425764]
[1742838750707,0.23715,88552.0,88547.0,0.34012564]
[1742838750865,0.225858,88552.0,88548.0,0.225865]
[1742838751085,0.00058131,88553.0,88552.0,0.225855]
[1742838751280,0.00058131,88553.0,88552.0,0.46699264]
[1742838751876,0.00058131,88553.0,88552.0,0.24113764]
[1742838752623,0.00058131,88553.0,88552.0,0.46699264]
[1742838752981,0.00058131,88553.0,88552.0,0.24113764]
[1742838753165,0.00058131,88553.0,88552.0,0.46699264]
[1742838753571,0.00058131,88553.0,88552.0,0.46899264]
[1742838755210,0.00058131,88553.0,88552.0,0.24313764]
[1742838755434,0.22643431,88553.0,88552.0,0.24313764]
[1742838755637,0.23772631,88553.0,88552.0,0.24313764]
[1742838756512,0.00058131,88553.0,88552.0,0.46899264]
[1742838761403,0.00058131,88553.0,88552.0,0.34161264]
[1742838762626,0.00058131,88553.0,88552.0,0.46849264]
[1742838762875,0.00058131,88553.0,88552.0,0.11575764]
[1742838763071,0.23772631,88553.0,88552.0,0.24263764]
[1742838765951,0.23772631,88553.0,88552.0,0.11575764]
[1742838768564,0.23772631,88553.0,88552.0,0.002]
[1742838770396,0.23772631,88553.0,88552.0,0.0023396]
[1742838773520,0.3214414,88553.0,88552.0,0.0023396]
[1742838773721,0.23772631,88553.0,88552.0,0.0023396]
[1742838785141,0.55226716,88553.0,88552.0,0.0023396]
[1742838785345,0.63366716,88553.0,88552.0,0.0023396]
[1742838786412,0.63366716,88553.0,88552.0,0.0003396]
[1742838788484,0.63366716,88553.0,88552.0,6e-07]
[1742838788688,0.7479248,88553.0,88552.0,6e-07]
[1742838789574,0.63366716,88553.0,88552.0,6e-07]
[1742838790689,0.63566716,88553.0,88552.0,6e-07]
[1742838793636,0.619059,88548.0,88547.0,2e-07]
[1742838793835,0.74785749,88548.0,88547.0,2e-07]
[1742838794161,0.86211513,88548.0,88547.0,2e-07]
[1742838795508,0.86411513,88548.0,88547.0,2e-07]
[1742838796434,0.86511513,88548.0,88547.0,2e-07]
[1742838797498,0.616578,88541.0,88540.0,8e-07]
[1742838797699,0.85963413,88541.0,88540.0,8e-07]
[1742838798304,0.86818338,88541.0,88540.0,8e-07]
[1742838799582,0.86918338,88541.0,88540.0,8e-07]
[1742838800191,0.87118338,88541.0,88540.0,8e-07]
[1742838804653,0.86263413,88541.0,88540.0,8e-07]
[1742838805563,0.66897649,88541.0,88540.0,8e-07]
[1742838805867,0.540178,88541.0,88540.0,8e-07]
[1742838806189,0.237228,88522.0,88521.0,0.076]
[1742838806392,0.237228,88522.0,88498.0,0.0116384]
[1742838806393,0.225986,88501.0,88498.0,0.0003394]
[1742838806607,0.237285,88501.0,88498.0,0.0003394]
[1742838806815,0.237316,88489.0,88488.0,0.10070214]
[1742838807061,0.226048,88477.0,88469.0,0.226066]
[1742838807260,0.011303,88471.0,88463.0,0.0003396]
[1742838807467,0.537384,88464.0,88463.0,0.0003396]
[1742838807673,0.537384,88464.0,88463.0,0.11459724]
[1742838807878,0.59517972,88464.0,88463.0,0.0003396]
[1742838808085,0.34346672,88464.0,88463.0,0.00046278]
[1742838808294,0.011303,88467.0,88463.0,0.00046278]
[1742838808495,0.0466,88504.0,88463.0,0.00046278]
[1742838808496,0.011302,88477.0,88464.0,0.00828024]
[1742838808731,1.129945,88500.0,88473.0,0.2383]
[1742838808732,0.203451,88474.0,88473.0,0.2383]
[1742838808942,0.03371664,88502.0,88474.0,0.3]
[1742838809365,0.011299,88500.0,88497.0,0.2378]
[1742838809568,0.001,88542.0,88494.0,0.004]
[1742838809770,0.237271,88507.0,88506.0,0.004]
[1742838809997,0.237271,88507.0,88498.0,0.11425764]
[1742838809998,0.225963,88510.0,88502.0,0.004]
[1742838810216,0.011298,88506.0,88505.0,0.004]
[1742838810428,0.22597,88508.0,88505.0,0.004]
[1742838810429,0.23727,88507.0,88505.0,0.004]
[1742838810839,0.23727,88507.0,88504.0,0.004]
[1742838810840,0.225975,88505.0,88504.0,0.004]
[1742838811051,0.011299,88501.0,88496.0,0.004]
[1742838811264,0.011299,88499.0,88496.0,0.004]
[1742838811469,0.011299,88497.0,88493.0,0.004]
[1742838811669,0.225978,88504.0,88493.0,0.004]
[1742838811847,0.227974,88506.0,88496.0,0.004]
[1742838811848,0.225982,88503.0,88496.0,0.004]
[1742838812267,0.237281,88503.0,88496.0,0.004]
[1742838812481,0.011299,88499.0,88496.0,0.004]
[1742838812686,0.225987,88501.0,88496.0,0.004]
[1742838812861,0.0261883,88501.0,88496.0,0.004]
[1742838813066,0.225989,88500.0,88496.0,0.004]
[1742838813809,0.225988,88500.0,88496.0,0.004]
[1742838814012,0.011299,88498.0,88496.0,0.004]
[1742838814160,0.225992,88499.0,88496.0,0.004]
[1742838814367,0.0261883,88501.0,88496.0,0.004]
[1742838814572,0.001,88500.0,88496.0,0.004]
[1742838814796,0.525965,88510.0,88496.0,0.004]
[1742838815011,0.3,88510.0,88496.0,0.004]
[1742838815209,0.011299,88496.0,88492.0,0.53748]
[1742838815377,0.0559892,88495.0,88492.0,0.53748]
[1742838816286,0.3,88497.0,88492.0,0.53748]
[1742838816459,0.002,88496.0,88492.0,0.53748]
[1742838817005,0.3,88497.0,88492.0,0.53748]
[1742838817426,0.304,88497.0,88492.0,0.53748]
[1742838818086,0.004,88497.0,88492.0,0.53748]
[1742838819102,0.002,88495.0,88492.0,0.53748]
[1742838819563,0.004,88497.0,88492.0,0.53748]
[1742838820143,0.006,88497.0,88492.0,0.5378198]
[1742838820355,0.002,88497.0,88492.0,0.5378198]
[1742838820717,0.003,88495.0,88492.0,0.5378198]
[1742838820961,0.002,88497.0,88492.0,0.5378198]
[1742838821328,0.006,88497.0,88492.0,0.5378198]
[1742838821873,0.004,88497.0,88492.0,0.5378198]
[1742838822090,0.003,88495.0,88492.0,0.5378198]
[1742838822370,0.005,88495.0,88492.0,0.5378198]
[1742838822573,0.01676701,88494.0,88492.0,0.5378198]
[1742838822825,0.01676701,88494.0,88492.0,0.7638278]
[1742838823000,0.01676701,88494.0,88493.0,0.02626659]
[1742838823880,0.01876701,88494.0,88493.0,0.02626659]
[1742838824645,0.01976701,88494.0,88493.0,0.02626659]
[1742838824769,0.01976701,88494.0,88493.0,0.02226659]
[1742838824970,0.01976701,88494.0,88493.0,0.02626659]
[1742838825215,0.01976701,88494.0,88493.0,0.004]
[1742838825727,0.01776701,88494.0,88493.0,0.004]
[1742838826586,0.01776701,88494.0,88492.0,0.5378198]
[1742838826587,0.24377101,88494.0,88492.0,0.5378198]
[1742838826790,0.01776701,88494.0,88492.0,0.5378198]
[1742838826989,0.02906701,88494.0,88492.0,0.5378198]
[1742838827180,0.226006,88493.0,88492.0,0.5378198]
[1742838827384,0.2775025,88493.0,88492.0,0.0003398]
[1742838827625,0.25507301,88494.0,88492.0,0.0003398]
[1742838827626,0.24377301,88494.0,88492.0,0.0003398]
[1742838827838,0.24277101,88494.0,88492.0,0.0003398]
[1742838828192,0.24477101,88494.0,88492.0,0.0003398]
[1742838828393,0.24477101,88494.0,88492.0,0.00014269]
[1742838828724,0.01876701,88494.0,88492.0,0.00014269]
[1742838828935,0.226006,88493.0,88492.0,0.00014269]
[1742838829128,0.537306,88493.0,88492.0,0.00014269]
[1742838831289,0.538306,88493.0,88492.0,0.00014269]
[1742838832069,0.539306,88493.0,88492.0,0.00014269]
[1742838833219,0.538306,88493.0,88492.0,0.00014269]
[1742838833634,0.540306,88493.0,88492.0,0.00014269]
[1742838834042,0.64919176,88493.0,88492.0,0.00014269]
[1742838834197,0.64819176,88493.0,88492.0,0.00014269]
[1742838834612,0.65119176,88493.0,88492.0,0.00014269]
[1742838835865,0.73089176,88493.0,88492.0,0.00014269]
[1742838837177,0.75377629,88493.0,88492.0,0.00014269]
[1742838838148,0.92907478,88493.0,88492.0,0.00014269]
[1742838838368,0.92607478,88493.0,88492.0,0.00014269]
[1742838838745,0.537333,88483.0,88465.0,0.004]
[1742838838946,0.65159064,88483.0,88465.0,0.004]
[1742838840672,0.65459064,88483.0,88465.0,0.004]
[1742838841076,0.65859064,88483.0,88465.0,0.004]
[1742838841537,0.67313149,88483.0,88458.0,0.0003396]
[1742838841745,0.237384,88464.0,88458.0,0.0003396]
[1742838842185,0.79058249,88464.0,88458.0,0.0003396]
[1742838842668,0.80200244,88464.0,88458.0,0.0003396]
[1742838843115,0.85059616,88464.0,88458.0,0.0003396]
[1742838843320,0.9648538,88464.0,88458.0,0.0003396]
[1742838843742,0.9638538,88464.0,88458.0,0.0003396]
[1742838844052,0.9668538,88464.0,88458.0,0.0003396]
[1742838844269,0.9718538,88464.0,88458.0,0.0003396]
[1742838844568,0.537397,88459.0,88458.0,0.0003396]
[1742838844776,0.72327529,88459.0,88458.0,0.0003396]
[1742838844990,0.76020519,88459.0,88458.0,0.0003396]
[1742838845587,0.76120519,88459.0,88458.0,0.0003396]
[1742838845790,0.94163529,88459.0,88458.0,0.0003396]
[1742838846428,0.94063529,88459.0,88458.0,0.0003396]
[1742838847746,0.97435529,88459.0,88458.0,0.0003396]
[1742838848128,0.97535529,88459.0,88458.0,0.0003396]
[1742838848330,1.05665529,88459.0,88458.0,0.0003396]
[1742838849040,1.05165529,88459.0,88458.0,0.0003396]
[1742838849251,1.05888528,88459.0,88458.0,0.0003396]
[1742838849413,1.06388528,88459.0,88458.0,0.0003396]
[1742838849613,1.05888528,88459.0,88458.0,0.0003396]
[1742838849951,1.06388528,88459.0,88458.0,0.0003396]
[1742838850536,1.05888528,88459.0,88458.0,0.0003396]
[1742838850755,1.06388528,88459.0,88458.0,0.0003396]
[1742838851682,1.16487834,88459.0,88458.0,0.0003396]
[1742838852206,1.16295834,88459.0,88458.0,0.0003396]
[1742838852379,0.94991834,88459.0,88458.0,0.0003396]
[1742838852630,1.16255834,88459.0,88458.0,0.0003396]
[1742838853030,0.94891834,88459.0,88458.0,0.0003396]
[1742838853209,0.88348855,88459.0,88458.0,0.0003396]
[1742838853363,0.7876477,88459.0,88458.0,0.0003396]
[1742838853566,0.66165464,88459.0,88458.0,0.0003396]
[1742838853767,0.36165464,88459.0,88458.0,0.0003396]
[1742838853980,0.247397,88459.0,88458.0,0.0003396]
[1742838854205,0.547397,88459.0,88458.0,0.0003396]
[1742838854382,0.01628472,88458.0,88452.0,0.0001697]
[1742838854582,0.226108,88453.0,88452.0,0.0001697]
[1742838854929,0.237413,88453.0,88452.0,0.0001697]
[1742838855104,0.537413,88453.0,88452.0,0.0001697]
[1742838856331,0.541413,88453.0,88452.0,0.0001697]
[1742838856690,0.004,88453.0,88452.0,0.0001697]
[1742838857050,0.004,88453.0,88452.0,0.0041697]
[1742838857615,0.004,88453.0,88452.0,0.3233857]
[1742838857821,0.007,88453.0,88452.0,0.3120807]
[1742838858064,0.003,88453.0,88452.0,0.3120807]
[1742838858299,0.003,88453.0,88452.0,0.0859697]
[1742838858413,0.006,88453.0,88452.0,0.0859697]
[1742838858618,0.003,88453.0,88452.0,0.0859697]
[1742838859065,0.004,88453.0,88452.0,0.0041697]
[1742838859302,0.25026888,88453.0,88452.0,0.0001697]
[1742838859472,0.55026888,88453.0,88452.0,0.0001697]
[1742838859653,0.55226888,88453.0,88452.0,0.0001697]
[1742838860038,0.301,88453.0,88452.0,0.0001697]
[1742838860255,0.001,88453.0,88452.0,0.0041697]
[1742838860901,0.001,88453.0,88452.0,0.2302807]
[1742838862312,0.001,88453.0,88452.0,0.35584334]
[1742838863352,0.001,88453.0,88452.0,0.34453834]
[1742838863962,0.001,88453.0,88452.0,0.0061697]
[1742838864108,0.01628472,88458.0,88452.0,0.0061697]
[1742838864547,0.01628472,88458.0,88452.0,0.0071697]
[1742838864955,0.01628472,88458.0,88457.0,0.004]
[1742838865961,0.01573194,88458.0,88457.0,0.004]
[1742838866137,0.01573194,88458.0,88452.0,0.0041697]
[1742838866138,0.237413,88453.0,88452.0,0.0041697]
[1742838866439,0.237413,88453.0,88452.0,0.0011697]
[1742838866840,0.237413,88453.0,88452.0,0.0001697]
[1742838868370,0.238413,88453.0,88452.0,0.0001697]
[1742838868779,0.237413,88453.0,88452.0,0.0001697]
[1742838869006,0.239413,88453.0,88452.0,0.0001697]
[1742838869226,0.002,88453.0,88452.0,0.0001697]
[1742838869893,0.228108,88453.0,88452.0,0.0001697]
[1742838870552,0.01556224,88452.0,88451.0,0.0063396]
[1742838871573,0.01556224,88452.0,88451.0,0.2324526]
[1742838871960,0.01556224,88452.0,88451.0,0.2437576]
[1742838872315,0.01756224,88452.0,88451.0,0.35801524]
[1742838872519,0.01556224,88452.0,88451.0,0.35801524]
[1742838872720,0.01556224,88452.0,88451.0,0.43521524]
[1742838873196,0.01656224,88452.0,88451.0,0.43521524]
[1742838873600,0.01556224,88452.0,88451.0,0.43521524]
[1742838874074,0.01556224,88452.0,88451.0,0.64201524]
[1742838874607,0.01556224,88452.0,88451.0,0.43721524]
[1742838874806,0.01556224,88452.0,88451.0,0.64165524]
[1742838875445,0.01556224,88452.0,88451.0,0.0093396]
[1742838877294,0.24167324,88452.0,88451.0,0.0093396]
[1742838877473,0.01556224,88452.0,88451.0,0.0093396]
[1742838878488,0.31446896,88452.0,88451.0,0.0093396]
[1742838878701,0.25297824,88452.0,88451.0,0.0093396]
[1742838879458,0.01556224,88452.0,88451.0,0.0073396]
[1742838879666,0.01556224,88452.0,88451.0,0.0063396]
[1742838879870,0.01556224,88452.0,88451.0,0.0083396]
[1742838880135,0.01590224,88452.0,88451.0,0.0083396]
[1742838881701,0.01590224,88452.0,88451.0,0.36001524]
[1742838884627,0.01590224,88452.0,88451.0,0.43631524]
[1742838884829,0.01590224,88452.0,88451.0,0.84531524]
[1742838885519,0.00034,88452.0,88451.0,0.84531524]
[1742838885974,0.00034,88452.0,88451.0,0.84331524]
[1742838886410,0.00034,88452.0,88451.0,0.84431524]
[1742838886608,0.0001699,88483.0,88457.0,0.241402]
[1742838886763,0.0001699,88483.0,88457.0,0.69276664]
[1742838887165,0.0001699,88483.0,88457.0,0.70407064]
[1742838887483,0.0001699,88483.0,88457.0,0.71861149]
[1742838887836,1e-06,88458.0,88457.0,1.42761149]
[1742838888039,0.0001699,88483.0,88482.0,0.241335]
[1742838888252,0.0001699,88483.0,88482.0,0.79011264]
[1742838889603,0.0011699,88483.0,88482.0,0.79858612]
[1742838889921,0.0011699,88483.0,88482.0,0.80971695]
[1742838890319,0.0011699,88483.0,88482.0,0.81071695]
[1742838890758,0.0011699,88483.0,88482.0,0.80971695]
[1742838891055,0.0021699,88483.0,88482.0,0.81471695]
[1742838891256,0.0011699,88483.0,88482.0,0.81471695]
[1742838892022,0.0011699,88483.0,88482.0,0.81771695]
[1742838892607,0.0011699,88483.0,88482.0,0.81471695]
[1742838892804,0.0011699,88483.0,88482.0,0.81871695]
[1742838894477,0.0011699,88483.0,88482.0,1.22771695]
[1742838899863,0.0001699,88483.0,88482.0,1.22271695]
[1742838900051,0.0001699,88483.0,88482.0,1.22671695]
[1742838900734,0.0001699,88483.0,88482.0,1.22271695]
[1742838901085,0.0011699,88483.0,88482.0,1.22771695]
[1742838901486,9e-07,88483.0,88482.0,1.5348578]
[1742838901700,9e-07,88483.0,88482.0,1.5598578]
[1742838901909,0.0001699,88506.0,88505.0,0.241273]
[1742838902156,0.00029301,88506.0,88505.0,1.19132974]
[1742838902330,0.00029301,88506.0,88505.0,1.19985148]
[1742838902996,0.00029301,88506.0,88505.0,1.73745148]
[1742838903590,0.00029301,88506.0,88505.0,1.74045148]
[1742838903998,0.00029301,88506.0,88505.0,1.74545148]
[1742838905569,0.00029301,88506.0,88505.0,1.53723174]
[1742838905768,0.00029301,88506.0,88505.0,1.73500974]
[1742838906696,0.00029301,88506.0,88505.0,1.73444974]
[1742838907293,0.00029301,88506.0,88505.0,1.74312586]
[1742838909293,0.00029301,88506.0,88505.0,1.76099686]
[1742838911267,0.00029301,88506.0,88505.0,1.57507686]
[1742838911479,0.00029301,88506.0,88505.0,1.75871686]
[1742838920876,0.00029301,88506.0,88505.0,1.75447686]
[1742838922895,0.00029301,88506.0,88505.0,1.57507686]
[1742838923029,0.00029301,88506.0,88505.0,1.75339686]
[1742838926021,0.00029301,88506.0,88505.0,1.75309786]
[1742838931416,0.00029301,88506.0,88505.0,1.78814438]
[1742838932157,0.0423189,88529.0,88525.0,0.225924]
[1742838932423,0.0423189,88529.0,88526.0,0.11425764]
[1742838934008,0.0463189,88529.0,88527.0,0.225918]
[1742838934200,0.0463189,88529.0,88526.0,0.11425764]
[1742838934606,0.0453189,88529.0,88526.0,0.34017864]
[1742838934806,0.0463189,88529.0,88528.0,0.004]
[1742838935008,0.0433189,88529.0,88528.0,0.004]
[1742838935408,0.0463189,88529.0,88528.0,0.004]
[1742838936798,0.0453189,88529.0,88528.0,0.004]
[1742838937027,0.0463189,88529.0,88528.0,0.004]
[1742838937197,0.0463189,88529.0,88528.0,0.229917]
[1742838937426,0.0463189,88529.0,88528.0,0.004]
[1742838938162,0.0463189,88529.0,88528.0,0.0028129]
[1742838940210,0.0464886,88529.0,88528.0,0.0028129]
[1742838944223,0.0464886,88529.0,88528.0,0.2287299]
[1742838945052,0.0464886,88529.0,88528.0,0.0028129]
[1742838945171,0.0464886,88529.0,88528.0,0.2287299]
[1742838945904,0.0464886,88529.0,88528.0,0.0028129]